Cogmind - Beta 14 *** ADVENTURER MODE // 2024.09.26 @ 22:44:38 Player: IOIOI Result: Destroyed by Y-54 Guardian with Gatling Laser Performance ------------- Evolutions (1) 500 Regions Visited (5) 1000 Robots Destroyed (39) 195 Value Destroyed (1060) 1060 Prototype IDs (2) 40 Alien Tech Used (0) 0 Bonus (0) 0 TOTAL SCORE: 2795 Bonus ------- None Cogmind --------- Core Integrity 0/400 Matter 255/300 Energy 99/100 System Corruption 0% Temperature Warm (133) Movement Core (50) Location -6/Proximity Caves Parts ------- > --- POWER (1) -------- (None) > --- PROPULSION (2) --- (None) > --- UTILITY (4) ------ Disposable Heat Sink Targeting Computer Power Shielding > --- WEAPON (2) ------- (None) > --- INVENTORY (5) ---- Disposable Heat Sink Hacking Suite Peak State ------------ > --- POWER ------------ Light Ion Engine > --- PROPULSION ------- Light Treads Improved Treads > --- UTILITY ---------- Disposable Heat Sink Targeting Computer Power Shielding Medium Reactive Plating > --- WEAPON ----------- Plasma Rifle Mini Grenade Launcher > --- INVENTORY -------- Disposable Heat Sink [Rating: 19] Favorites ----------- Power Light Ion Engine Engine Light Ion Engine Propulsion Improved Treads Treads Improved Treads Leg Aluminum Leg Utility Targeting Computer Device Disposable Heat Sink Storage Large Battery Processor Targeting Computer Protection Power Shielding Weapon Mini Grenade Launcher Energy Gun Medium Laser Energy Cannon Beam Cannon Ballistic Gun Light Assault Rifle Launcher Mini Grenade Launcher Build | -11 -10 -9 -9 -7 -6 ------- Run | Yrd Mat Mat Min Zio Pro Slots Evolved 2 | . . 2 . . . Power . | . . . . . . Propulsion . | . . . . . . Utility 2 | . . 2 . . . Weapon . | . . . . . . Parts Attached 26 | 6 4 3 8 4 1 Power 3 | 1 . 1 1 . . Engine 3 | 1 . 1 1 . . Core . | . . . . . . Reactor . | . . . . . . Propulsion 6 | 2 2 . 1 1 . Treads 4 | . 2 . 1 1 . Leg 2 | 2 . . . . . Wheel . | . . . . . . Hover . | . . . . . . Flight . | . . . . . . Utility 10 | 1 1 2 3 2 1 Device 3 | 1 . . 2 . . Storage 1 | . . . 1 . . Processor 2 | . 1 1 . . . Hackware . | . . . . . . Protection 4 | . . 1 . 2 1 Artifact . | . . . . . . Weapon 7 | 2 1 . 3 1 . Energy Gun 3 | 1 . . 1 1 . Energy Cannon 1 | . 1 . . . . Ballistic Gun 2 | 1 . . 1 . . Ballistic Cannon . | . . . . . . Launcher 1 | . . . 1 . . Special Weapon . | . . . . . . Impact Weapon . | . . . . . . Slashing Weapon . | . . . . . . Piercing Weapon . | . . . . . . Special Melee Weapon . | . . . . . . Unidentified Prototypes . | . . . . . . Parts Lost 15 | . . 1 7 . 7 Power 3 | . . 1 1 . 1 Propulsion 4 | . . . 2 . 2 Utility 3 | . . . 1 . 2 Weapon 5 | . . . 3 . 2 Highest Loss Streak 7 | . . 1 7 . 5 To Critical Strikes . | . . . . . . Average Slot Usage (%) 92 | . 97 96 84 97 83 Engine 11 | . 14 8 10 11 10 Treads 17 | . 20 22 15 19 11 Leg 1 | . 7 . . . . Device 11 | . 14 11 10 11 11 Storage 1 | . . . 4 3 . Processor 17 | . 12 22 22 21 11 Protection 7 | . . 11 2 7 17 Energy Gun 9 | . 14 11 4 7 10 Energy Cannon 5 | . 12 11 5 . . Ballistic Gun 2 | . 1 . 5 3 . Launcher 5 | . . . 3 11 11 Peak Build Rating 19 | 6 9 12 13 19 19 Average Rating 12 | 3 8 11 11 15 15 On Entrance 9 | . 6 9 12 12 19 Naked Turns . | . . . . . . Heaviest Build 30 | 8 9 12 13 30 30 Greatest Support 46 | 20 46 46 46 43 43 Greatest Overweight (x) 1 | . . . 1 . . Average Overweight (x) . | . . . . . . Largest Inventory Capacity 5 | 5 5 5 5 5 5 Average Capacity 5 | 5 5 5 5 5 5 Most Carried 5 | 5 5 5 5 3 3 Average Carried 2 | 2 3 4 3 1 2 Final Capacity 5 | 5 5 5 5 5 5 Final Carried 5 | 1 5 5 1 2 2 Class Distribution -------------------- 87% | Mutant 12% | Scavenger-Mutant Dominant Class ---------------- Mutant | -10/Materials Mutant | -9/Materials Mutant | -9/Mines Mutant | -7/Zion Mutant | -6/Proximity Caves Resources | -11 -10 -9 -9 -7 -6 ----------- Run | Yrd Mat Mat Min Zio Pro Matter Collected 553 | 230 94 30 66 43 90 Remotely . | . . . . . . Salvage Created 1029 | 34 323 447 163 . 62 Parts 80 | 2 38 29 10 . 1 Haulers Intercepted . | . . . . . . Recyclers Shooed . | . . . . . . Parts Field Recycled . | . . . . . . Retrieved Matter . | . . . . . . Parts Self-Destructed 1 | . . . . 1 . Prevented . | . . . . . . Kills | -11 -10 -9 -9 -7 -6 ------- Run | Yrd Mat Mat Min Zio Pro Combat Hostiles Destroyed 28 | 1 10 7 6 . 4 Melee 1 | . . . 1 . . Guns 14 | 1 7 2 3 . 1 Cannons 10 | . 3 5 2 . . AOE 3 | . . . . . 3 Classes Destroyed 9 | 1 3 1 2 . 2 Worker 4 | . 2 2 . . . Watcher 7 | . 3 3 . . 1 Swarmer 9 | . 6 . 3 . . Grunt 12 | 1 4 5 1 . 1 Duelist 1 | . . . 1 . . Sentry 2 | . . 2 . . . Demolisher 1 | . . . 1 . . Hunter 2 | . . . . . 2 Programmer 1 | . . . . . 1 Best Kill Streak 4 | 1 3 4 3 . 3 Combat Bots Only 3 | 1 3 2 3 . 3 Max Kills in Single Turn 2 | 1 2 2 1 . 1 Gunslinging . | . . . . . . Exploded 1 | . . . . . 1 Melee 1 | . . . 1 . . Uniques/NPCs Destroyed . | . . . . . . Combat | -11 -10 -9 -9 -7 -6 -------- Run | Yrd Mat Mat Min Zio Pro Hostile Shots Fired 252 | 1 28 53 26 . 144 Missed 80 | 1 8 12 7 . 52 Damage Taken 1801 | . 152 430 457 . 762 Core 451 | . 44 37 191 . 179 Absorbed by Shields . | . . . . . . Redirected to Shielding 5 | . . . . . 5 Ignored by Resistances 784 | . 50 133 124 . 477 Core Remaining (%) 91 | 100 82 . . . . Volleys Fired 104 | 1 30 34 15 . 24 Largest 2 | 2 2 2 2 . 2 Hottest 110 | 70 110 110 110 . 105 Shots Fired 187 | 2 59 68 20 . 38 Gun 106 | 2 36 34 12 . 22 Cannon 65 | . 23 34 8 . . Launcher 16 | . . . . . 16 Special . | . . . . . . Kinetic 12 | 1 7 . 4 . . Thermal 156 | 1 52 68 13 . 22 Explosive 16 | . . . . . 16 Electromagnetic 3 | . . . 3 . . Robot Hit Streak 26 | 2 14 16 26 . 12 Robot Miss Streak 4 | . 4 2 1 . 2 Penetration Max . | . . . . . . Secondary Targets . | . . . . . . Shots Hit Robots 139 | 2 36 53 20 . 28 Core Hits 76 | 2 18 21 12 . 23 Critical Kills 2 | . . . 2 . . Critical Parts Destroyed . | . . . . . . Critical Strikes 7 | . 2 1 2 . 2 Burn 5 | . 2 1 . . 2 Destroy 2 | . . . 2 . . Melee Attacks . | . . . . . . Impact . | . . . . . . Slashing . | . . . . . . Piercing . | . . . . . . Sneak Attacks . | . . . . . . Combat Hostiles . | . . . . . . Follow-up Attacks . | . . . . . . Damage Inflicted 3076 | 28 558 811 284 . 1395 Guns 1158 | 28 296 339 124 . 371 Cannons 876 | . 262 472 142 . . Explosions 1024 | . . . . . 1024 Melee . | . . . . . . Ramming 18 | . . . 18 . . Kinetic 108 | 15 63 . 30 . . Thermal 1895 | 13 495 811 205 . 371 Explosive 1024 | . . . . . 1024 Electromagnetic 31 | . . . 31 . . Impact . | . . . . . . Slashing . | . . . . . . Piercing . | . . . . . . Highest Corruption . | . . . . . . Average Corruption . | . . . . . . Corruption Purged . | . . . . . . Corruption Blocked . | . . . . . . Overload Shots . | . . . . . . Overflow Damage 19 | . . 15 4 . . Projectiles 19 | . . 15 4 . . Explosions . | . . . . . . Melee . | . . . . . . Knockbacks . | . . . . . . Impact . | . . . . . . Kinetic . | . . . . . . Secondary . | . . . . . . Self-Inflicted Damage 93 | . . . 7 . 86 Shots 5 | . . . . . 5 Rammed 7 | . . . 7 . . Targets Rammed 7 | . . . 7 . . Kicked . | . . . . . . Crushed . | . . . . . . Highest Temperature 464 | 9 116 464 . . 194 Average Temperature 100 | 6 43 127 . . 117 Received Heat Transfer 510 | . 51 312 . . 147 Effects 1 | . . 1 . . . Interference 1 | . . 1 . . . Siege Activations . | . . . . . . Robots Corrupted . | . . . . . . Combat Hostiles . | . . . . . . Parts Fried . | . . . . . . Impact Corruptions . | . . . . . . Robots Melted 1 | . . . . . 1 Combat Hostiles . | . . . . . . Parts Melted 12 | . 6 3 2 . 1 Heat Transferred 4996 | 37 1406 2072 481 . 1000 Parts Sabotaged . | . . . . . . Parts Stolen . | . . . . . . Parts Stripped . | . . . . . . Power Chain Reactions . | . . . . . . Alert | -11 -10 -9 -9 -7 -6 ------- Run | Yrd Mat Mat Min Zio Pro Peak Influence 209 | 20 193 209 136 . . Initial 36 | . 11 . 36 . . Average 83 | 2 117 80 46 . . Maximum Alert Level 1 | . . 1 . . . Low Security (%) 99 | 100 100 98 100 . . Level 1 . | . . 1 . . . Level 2 . | . . . . . . Level 3 . | . . . . . . Level 4 . | . . . . . . Level 5 . | . . . . . . High Security . | . . . . . . Max Security . | . . . . . . Squads Dispatched 1 | . 1 . . . . Investigation 1 | . 1 . . . . Extermination . | . . . . . . Reinforcement . | . . . . . . Assault . | . . . . . . Garrison . | . . . . . . Intercept . | . . . . . . Searches Triggered . | . . . . . . Construction Impeded . | . . . . . . Haulers Reinforced . | . . . . . . Active Scanning Responses . | . . . . . . Cargo Convoy Interrupts . | . . . . . . Stealth | -11 -10 -9 -9 -7 -6 --------- Run | Yrd Mat Mat Min Zio Pro Distress Signals 2 | . . . . . 2 Communications Jammed . | . . . . . . Distress Signals . | . . . . . . Times Spotted 47 | 1 16 11 9 . 10 Peak Tracking Total 6 | 1 4 3 4 . 6 Tactical Retreats 3 | . 1 . 2 . . Traps | -11 -10 -9 -9 -7 -6 ------- Run | Yrd Mat Mat Min Zio Pro Traps Triggered 2 | . 1 1 . . . Indirectly . | . . . . . . Trap Hack Attempts . | . . . . . . Triggered . | . . . . . . Disarmed . | . . . . . . Reprogrammed . | . . . . . . Reused . | . . . . . . Traps Extracted . | . . . . . . Installed . | . . . . . . Triggered . | . . . . . . Machines | -11 -10 -9 -9 -7 -6 ---------- Run | Yrd Mat Mat Min Zio Pro Machines Disabled . | . . . . . . Max in Single Turn . | . . . . . . Machines Repaired . | . . . . . . Machines Dismantled . | . . . . . . Machines Sabotaged . | . . . . . . Overloaded Fab Kills . | . . . . . . Hacking | -11 -10 -9 -9 -7 -6 --------- Run | Yrd Mat Mat Min Zio Pro Machines Accessed 3 | . 2 1 . . . Terminals 1 | . . 1 . . . Fabricators . | . . . . . . Repair Stations . | . . . . . . Recycling Units 2 | . 2 . . . . Scanalyzers . | . . . . . . Garrison Access . | . . . . . . Total Hacks 7 | . 5 2 . . . Successful 5 | . 3 2 . . . Failed 2 | . 2 . . . . Catastrophic . | . . . . . . Database Lockouts . | . . . . . . Manual . | . . . . . . Terminals 2 | . . 2 . . . Fabricators . | . . . . . . Repair Stations . | . . . . . . Recycling Units 5 | . 5 . . . . Scanalyzers . | . . . . . . Garrison Access . | . . . . . . Terminal Hacks 2 | . . 2 . . . Prototype ID Bank 1 | . . 1 . . . Alert Level 1 | . . 1 . . . Fabricator Hacks . | . . . . . . Repair Station Hacks . | . . . . . . Recycling Unit Hacks 3 | . 3 . . . . Process 1 | . 1 . . . . Retrieve Components 2 | . 2 . . . . Scanalyzer . | . . . . . . Garrison Access Hacks . | . . . . . . Unauthorized Hacks . | . . . . . . Terminals . | . . . . . . Fabricators . | . . . . . . Repair Stations . | . . . . . . Recycling Units . | . . . . . . Scanalyzers . | . . . . . . Garrison Access . | . . . . . . Data Cores Recovered . | . . . . . . Used . | . . . . . . Hacking Detections . | . . . . . . Full Trace Events . | . . . . . . Feedback Events . | . . . . . . Feedback Blocked . | . . . . . . Robot Schematics Acquired 3 | . . . . 3 . Robots Built . | . . . . . . Authchips . | . . . . . . Time . | . . . . . . Total Robot Build Rating . | . . . . . . Part Schematics Acquired 14 | . . . . 14 . Parts Built . | . . . . . . Authchips . | . . . . . . Time . | . . . . . . Total Part Build Rating . | . . . . . . Parts Repaired . | . . . . . . Time . | . . . . . . Parts Recycled . | . . . . . . Recycled Matter . | . . . . . . Retrieved Matter . | . . . . . . Retrieved Components . | . . . . . . Parts Scanalyzed . | . . . . . . Part Schematics Acquired . | . . . . . . Parts Damaged . | . . . . . . Bothacking | -11 -10 -9 -9 -7 -6 ------------ Run | Yrd Mat Mat Min Zio Pro Used RIF Installer . | . . . . . . Robots Hacked . | . . . . . . Non-combat . | . . . . . . Combat . | . . . . . . Robot Hacks Applied . | . . . . . . Relay Couplers Released . | . . . . . . Fabnet Peak Effective % . | . . . . . . Robots Rewired . | . . . . . . Allies Hacked . | . . . . . . Hacks Repelled . | . . . . . . Allies | -11 -10 -9 -9 -7 -6 -------- Run | Yrd Mat Mat Min Zio Pro Total Allies . | . . . . . . Largest Group . | . . . . . . Highest-Rated Group . | . . . . . . Highest-Rated Ally . | . . . . . . Total Orders . | . . . . . . Ally Attacks . | . . . . . . Total Damage . | . . . . . . Kills . | . . . . . . Allies Corrupted . | . . . . . . Allies Melted . | . . . . . . Intel | -11 -10 -9 -9 -7 -6 ------- Run | Yrd Mat Mat Min Zio Pro Robot Analysis Total . | . . . . . . Derelict Logs Recovered 2 | . . . . . 2 Drone Launches . | . . . . . . Drone Recoveries . | . . . . . . Exploration | -11 -10 -9 -9 -7 -6 ------------- Run | Yrd Mat Mat Min Zio Pro Turns Passed 3613 | 112 872 561 539 904 625 Spaces Moved 1949 | 94 480 264 261 558 292 Core 55 | 27 . . 25 . 3 Treads 1667 | . 320 264 236 558 289 Legs 227 | 67 160 . . . . Wheels . | . . . . . . Hover . | . . . . . . Flight . | . . . . . . Fastest Speed 50 | 50 120 160 50 160 50 Average Speed 152 | 99 146 160 152 160 158 Slowest Speed 160 | 120 160 160 160 160 160 Overloaded Moves . | . . . . . . Propulsion Burnouts . | . . . . . . Robots Hopped . | . . . . . . Cave-ins Triggered . | . . . . . . Exploration Rate (%) 48 | 6 75 29 68 67 45 Regions Visited 5 Branch Regions 3 Pre-discovered Areas 1 | . . . . . 1 Known Exits Taken . | . . . . . . Unknown Exits Taken 5 | 1 1 1 1 1 . Scrap Searched 7 | . . . 1 3 3 Spaces Dug . | . . . . . . Terrain Destroyed 86 | . . . . . 86 Melee . | . . . . . . Projectile 2 | . . . . . 2 AOE 84 | . . . . . 84 Terrain Rammed . | . . . . . . Walls Destroyed . | . . . . . . Machines Disabled . | . . . . . . Actions | -11 -10 -9 -9 -7 -6 --------- Run | Yrd Mat Mat Min Zio Pro Total 2409 | 111 591 336 385 571 415 Wait 272 | . 61 29 85 . 97 Move 1944 | 93 479 263 260 557 292 Hop . | . . . . . . Pick Up 38 | 9 11 5 6 6 1 Fast Attach . | . . . . . . Attach 23 | 6 1 3 8 4 1 Detach . | . . . . . . Swap 3 | . 3 . . . . Drop 18 | 2 6 2 4 4 . Fire 104 | 1 30 34 15 . 24 Melee . | . . . . . . Ram 7 | . . . 7 . . Kick . | . . . . . . Crush . | . . . . . . Escape Stasis . | . . . . . . Rewire . | . . . . . . Trap . | . . . . . . Miscellaneous . | . . . . . . Route ------- -11/Scrapyard -10/Materials (discovered 2 exits: *Mat x2) -9/Materials (discovered 2 exits: [*Mat] / [*Min]) -9/Mines -7/Zion -6/Proximity Caves History --------- Turn | Location | Event 2 | -11/Scrapyard | Met Revision 17 93 | -11/Scrapyard | Discovered new exit (range 8) 113 | -11/Scrapyard | Entered Materials 317 | -10/Materials | Build established: Mutant 843 | -10/Materials | Discovered new exit (range 10) 977 | -10/Materials | Discovered new exit (range 5) 985 | -10/Materials | Entered another Materials area 985 | -9/Materials | Evolved 2 slots: Utility x2 1200 | -9/Materials | Discovered new exit (range 13) 1224 | -9/Materials | Discovered new exit (range 18) 1546 | -9/Materials | Entered Mines 1566 | -9/Mines | Met a Derelict bent on vengeance 1600 | -9/Mines | Assembled infested the area 1828 | -9/Mines | Core integrity fell below 50% 1862 | -9/Mines | Lost 7 parts (1p2n1u3w) 2074 | -9/Mines | A Derelict revealed a hidden shortcut to a safe place 2085 | -9/Mines | Entered Zion 2229 | -7/Zion | Build established: Scavenger-Mutant 2681 | -7/Zion | Build established: Mutant 2840 | -7/Zion | Given A8's code to call for help 2913 | -7/Zion | Discovered new exit (range 18) 2989 | -7/Zion | Entered Proximity Caves 2991 | -6/Proximity Caves | Ambushed by research squad 3292 | -6/Proximity Caves | Learned Factory terminal intel 3533 | -6/Proximity Caves | Snuck into a huge 0b10 base via the rear entrance 3566 | -6/Proximity Caves | Core integrity fell below 20% 3614 | -6/Proximity Caves | Destroyed by Y-54 Guardian with Gatling Laser Last Messages --------------- 03546_ W-25 Informer distress signal alerts nearby ally. 03547_ W-25 Informer suffers critical hit (Burn). 03559_ W-25 Informer heat short circuits Imp. Sensor Array. 03560_ W-25 Informer heat short circuits Lgt. Deuterium Engine. 03561_ W-25 Informer distress signal alerts nearby ally. 03565_ W-25 Informer heat damages core (-6). [Achievement: It's Just You] 03565_ Imp. Signal Interpreter melted. 03604_ The unstable cave ceiling collapses. 03604_ Lgt. Ion Engine destroyed. 03606_ G-50 Soldier destroyed. 03607_ Reflective Plating destroyed. 03607_ Imp. Treads destroyed. 03608_ Plasma Rifle destroyed. 03611_ Mni. Grenade Launcher destroyed. Map ----- +----------------------------------------------------+ | ?????????????????????????????# ?????????????????? | | ?????????????????????????????# #????????????????? | | ?????????????????????????????# #????????????????? | | ?????????????????????????????# #????????????????? | | ?????????????????????????????# #????????????????? | | ?????????????????????????????# #????????????????? | | ?????????????????????????????# %#????????????????? | | ?????????????????????????????# #????????????????? | | ???????????????????????????### ###??????????????? | | ???????????????????????????# #??????????????? | | ???????????????????????????### ###??????????????? | | ?????????????????????????????# #????????????????? | | ?????????????????????????????# #????????????????? | | ?????????????????????????????# #????????????????? | | ?????????????????????????????# #????????????????? | | ?????????????????????????????# w#?##?????????????? | | ??????????????????????????#### ## ###???????????? | | ??????????????????????????# #Y ## #???????????? | | ??????????????????????????# Y #???????????? | | ??????????????????????????# #???????????? | | ?####?????????#####?####### % ????????????? | | ## #######???# ### #???????????????? | | # ##### ## #???????????????? | | ?# ## ## #???????????????? | | ## ##### ###???????????????? | | # #### ####???## @ #????????????????? | | # #??# ###???????# ####????????????????? | | # #?## #######??## ##???????????????????? | | #?# ## #### ##????????????????????? | | #?# ## ##?????????????????????? | | #?# ##??????????????????????? | | ### #???????????????????????? | | ## #???????????????????????? | | ## ## #???????????????????????? | | ### ##???????????????????????? | | ## #?####????????????????????????? | | ##### ?????????????????????????????? | | ##??## ????????????????????????????? | | ###?# ### ???????????????????????????? | | #?#########?? ??????????????????????????? | | #??????????? ?????????????????????????? | | ##??????????? ????????????????????????? | | ##???????????? ?????????????????????????? | | ######?????????????#### ?????????????????????????? | | ?????????????????????????????????????????????????? | | ?????????????????????????????????????????????????? | | ?????????????????????????????????????????????????? | | ?????????????????????????????????????????????????? | | ?????????????????????????????????????????????????? | | ?????????????????????????????????????????????????? | +----------------------------------------------------+ Best States ------------- Heat Dissipation 50 Coolant Potential 50 Energy Generation 10 Energy Capacity 325 Matter Stores 300 Matter Capacity 300 Sight Range 18 Terrain Scan Density 10 Armor Coverage 225 Resistance: KI 50 Resistance: TH 30 Resistance: EX 20 Resistance: EM 20 Resistance: I 20 Resistance: S 20 Resistance: P 20 Power Shielding 33 Evasion (%) 55 Targeting Accuracy 5 Recoil Reduction 2 Offensive Hacking 10 Authchip Count 1 Item Schematics ----------------- Phase Shifter | -7/Zion | Archive Dynamic Insulation System | -7/Zion | Archive Arc Projector | -7/Zion | Archive Force Field | -7/Zion | Archive System Restoration Module | -7/Zion | Archive Disruptor Cannon | -7/Zion | Archive Arm. Huge Wheel | -7/Zion | Archive Magnetic Acceleration Cannon | -7/Zion | Archive Mni. Drone Bay | -7/Zion | Archive Adv. Heat Sink | -7/Zion | Archive Gravmag System | -7/Zion | Archive Imp. Cryofiber Web | -7/Zion | Archive Adv. Terrain Scanner | -7/Zion | Archive Shock Absorption System | -7/Zion | Archive Robot Schematics ------------------ A-02 Transporter | -7/Zion | Archive S-27 Virus | -7/Zion | Archive K-01 Serf | -7/Zion | Archive Fabricated ------------ Nothing Alien Tech Used ----------------- None Achievements -------------- Fist Fight It's Just You Challenges ------------ None Game ------ Seed GaussPointShielding Manual? 0 Play Time 00:42:26 Cumulative 2.0 hours Start 2024.09.26 @ 22:04:49 End 2024.09.26 @ 22:44:38 Sessions 1 Manual Loads 0 Difficulty Adventurer Special Mode None Game No. 13 Rogue 9 Adventurer 4 Explorer 0 Win Type - Total 0 Types 0/0/0/0/0/0/0/0/0 Lore% 4 Gallery% 6 Achievement% 10 Wizard Run 0 Options --------- Layout 1 ASCII 0 Keyboard 0 Movement Mouse Keybinds 0 Fullscreen 2 Font 32/SmallcapsGlow Map View 50x35 Zoom Use 0% Tactical HUD 1 Map Filters NONE Filters NONE Steam 1 RUN: 62c8a2bc-09a5-40d1-bf9d-5c273420f03c